[Event "Titled Tuesday Blitz June 07 Early 2022"]
[White "Deuer, Marius"]
[Black "Santos Ruiz, Miguel"]
[WhiteFideId "16236432"]
[BlackFideId "22291482"]
[WhiteElo "2091"]
[BlackElo "2475"]
[Result "0-1"]
[Round "04"]
[TimeControl "180+1"]
[Date "2022.06.07"]
[WhiteClock "0:00:02"]
[BlackClock "0:00:06"]

1. e4 {[%clk 0:02:54]}  c5 {[%clk 0:02:58]} 2. Nf3 {[%clk 0:02:53]}  d6 {[%clk 0:02:59]} 3. c3 {[%clk 0:02:53]}  Nf6 {[%clk 0:02:58]} 4. Bd3 {[%clk 0:02:53]}  g6 {[%clk 0:02:54]} 5. O-O {[%clk 0:02:52]}  Bg7 {[%clk 0:02:54]} 6. h3 {[%clk 0:02:51]}  O-O {[%clk 0:02:54]} 7. Bc2 {[%clk 0:02:52]}  e5 {[%clk 0:02:54]} 8. d4 {[%clk 0:02:51]}  exd4 {[%clk 0:02:55]} 9. cxd4 {[%clk 0:02:51]}  cxd4 {[%clk 0:02:56]} 10. Nxd4 {[%clk 0:02:51]}  Nc6 {[%clk 0:02:57]} 11. Be3 {[%clk 0:02:43]}  d5 {[%clk 0:02:18]} 12. Nxc6 {[%clk 0:02:43]}  bxc6 {[%clk 0:02:18]} 13. Nc3 {[%clk 0:02:43]}  Ba6 {[%clk 0:02:12]} 14. Re1 {[%clk 0:02:41]}  Re8 {[%clk 0:02:02]} 15. Bd4 {[%clk 0:01:45]}  Rb8 {[%clk 0:01:44]} 16. exd5 {[%clk 0:01:35]}  Rxe1+ {[%clk 0:01:33]} 17. Qxe1 {[%clk 0:01:36]}  cxd5 {[%clk 0:01:10]} 18. Bb3 {[%clk 0:01:33]}  Bc4 {[%clk 0:01:04]} 19. Bxa7 {[%clk 0:01:32]}  Ra8 {[%clk 0:01:02]} 20. Bd4 {[%clk 0:01:32]}  Bxb3 {[%clk 0:00:59]} 21. axb3 {[%clk 0:01:33]}  Rb8 {[%clk 0:00:50]} 22. Ra7 {[%clk 0:00:55]}  Rxb3 {[%clk 0:00:46]} 23. Qe2 {[%clk 0:00:56]}  Rb8 {[%clk 0:00:37]} 24. g3 {[%clk 0:00:51]}  h6 {[%clk 0:00:36]} 25. Kg2 {[%clk 0:00:51]}  Ra8 {[%clk 0:00:35]} 26. Rxa8 {[%clk 0:00:50]}  Qxa8 {[%clk 0:00:36]} 27. Qf3 {[%clk 0:00:49]}  Ne4 {[%clk 0:00:33]} 28. Bxg7 {[%clk 0:00:45]}  Kxg7 {[%clk 0:00:31]} 29. Nxe4 {[%clk 0:00:40]}  dxe4 {[%clk 0:00:32]} 30. Qe3 {[%clk 0:00:40]}  Qb7 {[%clk 0:00:30]} 31. Kh2 {[%clk 0:00:36]}  Qxb2 {[%clk 0:00:29]} 32. Kg2 {[%clk 0:00:36]}  Qe5 {[%clk 0:00:28]} 33. Qe2 {[%clk 0:00:34]}  h5 {[%clk 0:00:28]} 34. Qe3 {[%clk 0:00:34]}  Qf5 {[%clk 0:00:25]} 35. h4 {[%clk 0:00:12]}  Kg8 {[%clk 0:00:24]} 36. Qd4 {[%clk 0:00:10]}  Kf8 {[%clk 0:00:23]} 37. Qd8+ {[%clk 0:00:09]}  Kg7 {[%clk 0:00:23]} 38. Qd4+ {[%clk 0:00:10]}  Kh7 {[%clk 0:00:24]} 39. Qe3 {[%clk 0:00:09]}  Qe5 {[%clk 0:00:24]} 40. Qa7 {[%clk 0:00:09]}  Kg7 {[%clk 0:00:23]} 41. Qe3 {[%clk 0:00:09]}  Kf6 {[%clk 0:00:23]} 42. Qb6+ {[%clk 0:00:09]}  Qe6 {[%clk 0:00:23]} 43. Qe3 {[%clk 0:00:09]}  Qf5 {[%clk 0:00:22]} 44. Qd4+ {[%clk 0:00:09]}  Ke6 {[%clk 0:00:22]} 45. Qb6+ {[%clk 0:00:09]}  Kd5 {[%clk 0:00:21]} 46. Qb5+ {[%clk 0:00:10]}  Kd6 {[%clk 0:00:21]} 47. Qb6+ {[%clk 0:00:10]}  Kd7 {[%clk 0:00:21]} 48. Qb7+ {[%clk 0:00:10]}  Ke6 {[%clk 0:00:22]} 49. Qc6+ {[%clk 0:00:10]}  Ke7 {[%clk 0:00:22]} 50. Qc7+ {[%clk 0:00:10]}  Kf6 {[%clk 0:00:23]} 51. Qc3+ {[%clk 0:00:09]}  Qe5 {[%clk 0:00:21]} 52. Qc6+ {[%clk 0:00:09]}  Kg7 {[%clk 0:00:17]} 53. Qb6 {[%clk 0:00:07]}  Qd5 {[%clk 0:00:17]} 54. Qe3 {[%clk 0:00:08]}  Kf6 {[%clk 0:00:17]} 55. Qb6+ {[%clk 0:00:07]}  Ke5 {[%clk 0:00:16]} 56. Qe3 {[%clk 0:00:07]}  Qd3 {[%clk 0:00:14]} 57. Qf4+ {[%clk 0:00:07]}  Ke6 {[%clk 0:00:14]} 58. Qb8 {[%clk 0:00:06]}  Qf3+ {[%clk 0:00:13]} 59. Kg1 {[%clk 0:00:04]}  Qd1+ {[%clk 0:00:13]} 60. Kg2 {[%clk 0:00:04]}  Qf3+ {[%clk 0:00:12]} 61. Kg1 {[%clk 0:00:04]}  Kf6 {[%clk 0:00:08]} 62. Qd6+ {[%clk 0:00:04]}  Kg7 {[%clk 0:00:08]} 63. Qd4+ {[%clk 0:00:03]}  Kg8 {[%clk 0:00:08]} 64. Qd8+ {[%clk 0:00:03]}  Kh7 {[%clk 0:00:08]} 65. Qd4 {[%clk 0:00:02]}  Qd3 {[%clk 0:00:07]} 66. Qa7 {[%clk 0:00:02]}  Kg7 {[%clk 0:00:07]} 67. Qc5 {[%clk 0:00:03]}  Qd1+ {[%clk 0:00:06]} 68. Kg2 {[%clk 0:00:02]}  Qf3+ {[%clk 0:00:06]} 69. Kg1 {[%clk 0:00:03]}  Kf6 {[%clk 0:00:06]} 70. Qd6+ {[%clk 0:00:03]}  Kf5 {[%clk 0:00:06]} 71. Qc5+ {[%clk 0:00:03]}  Kg4 {[%clk 0:00:05]} 72. Qc8+ {[%clk 0:00:02]}  f5 {[%clk 0:00:05]} 73. Qg8 {[%clk 0:00:03]}  Kh3 {[%clk 0:00:06]} 74. Qh8 {[%clk 0:00:02]}  Qg2# {[%clk 0:00:06]} 0-1


[Site "https://www.chess.com"]

[Event "Titled Tuesday Blitz June 07 Early 2022"]
[White "Durarbayli, Vasif"]
[Black "Gunina, Valentina"]
[WhiteFideId "13402935"]
[BlackFideId "4167570"]
[WhiteElo "2528"]
[BlackElo "2386"]
[Result "1-0"]
[Round "04"]
[TimeControl "180+1"]
[Date "2022.06.07"]
[WhiteClock "0:00:08"]
[BlackClock "0:00:06"]

1. e4 {[%clk 0:03:00]}  c6 {[%clk 0:03:00]} 2. Nf3 {[%clk 0:03:01]}  d5 {[%clk 0:03:00]} 3. Nc3 {[%clk 0:03:02]}  dxe4 {[%clk 0:02:58]} 4. Nxe4 {[%clk 0:03:03]}  Nf6 {[%clk 0:02:59]} 5. Qe2 {[%clk 0:03:03]}  Nxe4 {[%clk 0:02:56]} 6. Qxe4 {[%clk 0:03:04]}  Nd7 {[%clk 0:02:57]} 7. d4 {[%clk 0:03:00]}  Nf6 {[%clk 0:02:57]} 8. Qd3 {[%clk 0:03:01]}  g6 {[%clk 0:02:42]} 9. Qb3 {[%clk 0:02:56]}  Bg7 {[%clk 0:02:41]} 10. Bc4 {[%clk 0:02:54]}  O-O {[%clk 0:02:41]} 11. h3 {[%clk 0:02:48]}  b5 {[%clk 0:02:35]} 12. Be2 {[%clk 0:02:48]}  Be6 {[%clk 0:02:33]} 13. Qe3 {[%clk 0:02:42]}  Nd5 {[%clk 0:02:26]} 14. Qg5 {[%clk 0:02:34]}  Bf5 {[%clk 0:02:22]} 15. c3 {[%clk 0:02:30]}  b4 {[%clk 0:02:20]} 16. c4 {[%clk 0:02:25]}  Nc7 {[%clk 0:02:14]} 17. Qh4 {[%clk 0:02:24]}  c5 {[%clk 0:01:55]} 18. Be3 {[%clk 0:01:42]}  Ne6 {[%clk 0:01:53]} 19. d5 {[%clk 0:01:17]}  Bxb2 {[%clk 0:01:44]} 20. Rd1 {[%clk 0:01:11]}  Bc3+ {[%clk 0:01:44]} 21. Kf1 {[%clk 0:01:09]}  Nd4 {[%clk 0:01:38]} 22. Ng5 {[%clk 0:00:57]}  h5 {[%clk 0:01:38]} 23. g4 {[%clk 0:00:57]}  Bc2 {[%clk 0:01:37]} 24. Bxd4 {[%clk 0:00:56]}  Bxd1 {[%clk 0:01:19]} 25. gxh5 {[%clk 0:00:42]}  Bxe2+ {[%clk 0:01:17]} 26. Kxe2 {[%clk 0:00:43]}  cxd4 {[%clk 0:00:21]} 27. hxg6 {[%clk 0:00:43]}  Kg7 {[%clk 0:00:21]} 28. Qh7+ {[%clk 0:00:37]}  Kf6 {[%clk 0:00:21]} 29. Ne4+ {[%clk 0:00:14]}  Ke5 {[%clk 0:00:21]} 30. Kd3 {[%clk 0:00:15]}  Qd7 {[%clk 0:00:16]} 31. f4+ {[%clk 0:00:07]}  Kxf4 {[%clk 0:00:07]} 32. Qh4+ {[%clk 0:00:07]}  Ke5 {[%clk 0:00:06]} 33. Qg3+ {[%clk 0:00:08]} 1-0


[Site "https://www.chess.com"]

[Event "Titled Tuesday Blitz June 07 Early 2022"]
[White "Kamsky, Gata"]
[Black "Dronavalli, Harika"]
[WhiteFideId "2000024"]
[BlackFideId "5015197"]
[WhiteElo "2645"]
[BlackElo "2382"]
[Result "1-0"]
[Round "04"]
[TimeControl "180+1"]
[Date "2022.06.07"]
[WhiteClock "0:00:42"]
[BlackClock "0:00:12"]

1. d4 {[%clk 0:03:00]}  Nf6 {[%clk 0:03:00]} 2. Nf3 {[%clk 0:03:00]}  d6 {[%clk 0:03:00]} 3. Bg5 {[%clk 0:02:57]}  Nbd7 {[%clk 0:03:00]} 4. Nbd2 {[%clk 0:02:56]}  h6 {[%clk 0:02:39]} 5. Bh4 {[%clk 0:02:54]}  g5 {[%clk 0:02:37]} 6. Bg3 {[%clk 0:02:53]}  Nh5 {[%clk 0:02:35]} 7. e4 {[%clk 0:02:48]}  Bg7 {[%clk 0:02:34]} 8. c3 {[%clk 0:02:48]}  c5 {[%clk 0:02:28]} 9. d5 {[%clk 0:02:40]}  a6 {[%clk 0:02:25]} 10. a4 {[%clk 0:02:39]}  Nf8 {[%clk 0:02:15]} 11. Nc4 {[%clk 0:02:33]}  Nxg3 {[%clk 0:02:06]} 12. hxg3 {[%clk 0:02:33]}  Ng6 {[%clk 0:01:49]} 13. a5 {[%clk 0:02:28]}  Bg4 {[%clk 0:01:46]} 14. Qa4+ {[%clk 0:02:25]}  Qd7 {[%clk 0:01:34]} 15. Qxd7+ {[%clk 0:02:23]}  Bxd7 {[%clk 0:01:34]} 16. Nb6 {[%clk 0:02:21]}  Rb8 {[%clk 0:01:34]} 17. Nxd7 {[%clk 0:02:16]}  Kxd7 {[%clk 0:01:34]} 18. Nd2 {[%clk 0:02:08]}  e6 {[%clk 0:01:31]} 19. Nc4 {[%clk 0:02:01]}  Ne5 {[%clk 0:01:30]} 20. Nb6+ {[%clk 0:01:46]}  Kc7 {[%clk 0:01:30]} 21. O-O-O {[%clk 0:01:45]}  Nd7 {[%clk 0:01:23]} 22. Nc4 {[%clk 0:01:36]}  exd5 {[%clk 0:01:17]} 23. Rxd5 {[%clk 0:01:32]}  Nf6 {[%clk 0:01:15]} 24. Rf5 {[%clk 0:01:32]}  Rhe8 {[%clk 0:01:05]} 25. Bd3 {[%clk 0:01:27]}  Rbd8 {[%clk 0:01:04]} 26. Ne3 {[%clk 0:01:22]}  Kb8 {[%clk 0:00:58]} 27. f3 {[%clk 0:01:19]}  Rd7 {[%clk 0:00:53]} 28. Bc4 {[%clk 0:01:18]}  g4 {[%clk 0:00:34]} 29. Kd2 {[%clk 0:00:55]}  h5 {[%clk 0:00:34]} 30. Ke2 {[%clk 0:00:52]}  Re5 {[%clk 0:00:31]} 31. Rd1 {[%clk 0:00:48]}  Kc7 {[%clk 0:00:24]} 32. Rxe5 {[%clk 0:00:48]}  dxe5 {[%clk 0:00:24]} 33. Rxd7+ {[%clk 0:00:48]}  Kxd7 {[%clk 0:00:21]} 34. Bxf7 {[%clk 0:00:49]}  Bh6 {[%clk 0:00:20]} 35. Nc4 {[%clk 0:00:47]}  Ke7 {[%clk 0:00:17]} 36. Bd5 {[%clk 0:00:45]}  gxf3+ {[%clk 0:00:13]} 37. gxf3 {[%clk 0:00:45]}  Nd7 {[%clk 0:00:13]} 38. Bxb7 {[%clk 0:00:44]}  Nb8 {[%clk 0:00:12]} 39. Nxe5 {[%clk 0:00:43]}  Bc1 {[%clk 0:00:12]} 40. Nd3 {[%clk 0:00:42]} 1-0


[Site "https://www.chess.com"]

[Event "Titled Tuesday Blitz June 07 Early 2022"]
[White "Khamdamova, Afruza"]
[Black "Saveliev, Alexei"]
[WhiteFideId "14210444"]
[BlackFideId "24128546"]
[WhiteElo "1660"]
[BlackElo "2281"]
[Result "0-1"]
[Round "04"]
[TimeControl "180+1"]
[Date "2022.06.08"]
[WhiteClock "0:00:02"]
[BlackClock "0:00:06"]

1. e4 {[%clk 0:03:00]}  g6 {[%clk 0:02:50]} 2. d4 {[%clk 0:03:00]}  Bg7 {[%clk 0:02:50]} 3. Nc3 {[%clk 0:03:00]}  d6 {[%clk 0:02:50]} 4. Be3 {[%clk 0:03:00]}  Nc6 {[%clk 0:02:51]} 5. Qd2 {[%clk 0:02:58]}  e5 {[%clk 0:02:51]} 6. Nge2 {[%clk 0:02:56]}  f5 {[%clk 0:02:51]} 7. dxe5 {[%clk 0:02:49]}  Nxe5 {[%clk 0:02:50]} 8. exf5 {[%clk 0:02:40]}  Bxf5 {[%clk 0:02:51]} 9. Nd4 {[%clk 0:02:40]}  Nf6 {[%clk 0:02:50]} 10. Nxf5 {[%clk 0:02:39]}  gxf5 {[%clk 0:02:51]} 11. O-O-O {[%clk 0:02:36]}  O-O {[%clk 0:02:52]} 12. Bh6 {[%clk 0:02:08]}  Qd7 {[%clk 0:02:39]} 13. Bxg7 {[%clk 0:02:07]}  Qxg7 {[%clk 0:02:39]} 14. f4 {[%clk 0:01:58]}  Ned7 {[%clk 0:02:35]} 15. Bd3 {[%clk 0:01:55]}  Qg6 {[%clk 0:02:26]} 16. h3 {[%clk 0:01:54]}  Nc5 {[%clk 0:02:22]} 17. Bc4+ {[%clk 0:01:43]}  Kh8 {[%clk 0:02:22]} 18. g4 {[%clk 0:01:43]}  Nfe4 {[%clk 0:02:18]} 19. Nxe4 {[%clk 0:01:38]}  Nxe4 {[%clk 0:02:10]} 20. Qd4+ {[%clk 0:01:24]}  Qf6 {[%clk 0:02:04]} 21. gxf5 {[%clk 0:01:23]}  Qxd4 {[%clk 0:01:52]} 22. Rxd4 {[%clk 0:01:23]}  Rae8 {[%clk 0:01:53]} 23. Bd5 {[%clk 0:01:20]}  Ng3 {[%clk 0:01:47]} 24. Rh2 {[%clk 0:01:01]}  Ne2+ {[%clk 0:01:35]} 25. Rxe2 {[%clk 0:01:01]}  Rxe2 {[%clk 0:01:36]} 26. Bxb7 {[%clk 0:00:59]}  Rxf5 {[%clk 0:01:36]} 27. Bc8 {[%clk 0:00:56]}  Rc5 {[%clk 0:01:30]} 28. c3 {[%clk 0:00:55]}  Kg7 {[%clk 0:01:30]} 29. Bg4 {[%clk 0:00:54]}  Re7 {[%clk 0:01:20]} 30. f5 {[%clk 0:00:53]}  Kf6 {[%clk 0:01:20]} 31. Kc2 {[%clk 0:00:50]}  a5 {[%clk 0:01:08]} 32. a3 {[%clk 0:00:42]}  Re3 {[%clk 0:00:32]} 33. Kd2 {[%clk 0:00:37]}  Rg3 {[%clk 0:00:32]} 34. Re4 {[%clk 0:00:36]}  Rg2+ {[%clk 0:00:29]} 35. Kc1 {[%clk 0:00:34]}  Re5 {[%clk 0:00:28]} 36. Bf3 {[%clk 0:00:29]}  Rg3 {[%clk 0:00:20]} 37. Rxe5 {[%clk 0:00:21]}  Kxe5 {[%clk 0:00:21]} 38. Bg4 {[%clk 0:00:21]}  Rg2 {[%clk 0:00:20]} 39. b4 {[%clk 0:00:20]}  a4 {[%clk 0:00:16]} 40. Bd1 {[%clk 0:00:18]}  Ra2 {[%clk 0:00:12]} 41. Bxa4 {[%clk 0:00:17]}  Rxa3 {[%clk 0:00:12]} 42. Bc2 {[%clk 0:00:16]}  Ra1+ {[%clk 0:00:10]} 43. Kb2 {[%clk 0:00:16]}  Rh1 {[%clk 0:00:09]} 44. f6 {[%clk 0:00:15]}  h6 {[%clk 0:00:04]} 45. f7 {[%clk 0:00:14]}  Rf1 {[%clk 0:00:05]} 46. Bg6 {[%clk 0:00:13]}  Rf6 {[%clk 0:00:05]} 47. Bh5 {[%clk 0:00:12]}  Kf4 {[%clk 0:00:05]} 48. h4 {[%clk 0:00:11]}  Kg3 {[%clk 0:00:05]} 49. Bg6 {[%clk 0:00:04]}  Kxh4 {[%clk 0:00:05]} 50. Kb3 {[%clk 0:00:04]}  Kg5 {[%clk 0:00:06]} 51. Bd3 {[%clk 0:00:04]}  Rxf7 {[%clk 0:00:06]} 52. Kc4 {[%clk 0:00:05]}  h5 {[%clk 0:00:04]} 53. Kd5 {[%clk 0:00:05]}  h4 {[%clk 0:00:04]} 54. Kc6 {[%clk 0:00:03]}  Rg7 {[%clk 0:00:05]} 55. Be4 {[%clk 0:00:03]}  h3 {[%clk 0:00:05]} 56. c4 {[%clk 0:00:03]}  Kf4 {[%clk 0:00:06]} 57. Bd5 {[%clk 0:00:03]}  Kg3 {[%clk 0:00:06]} 58. b5 {[%clk 0:00:03]}  h2 {[%clk 0:00:05]} 59. c5 {[%clk 0:00:02]}  dxc5 {[%clk 0:00:05]} 60. Kxc5 {[%clk 0:00:02]}  Kf2 {[%clk 0:00:06]} 0-1


[Site "https://www.chess.com"]

[Event "Titled Tuesday Blitz June 07 Early 2022"]
[White "Kobo, Ori"]
[Black "Shailesh, Dravid"]
[WhiteFideId "2812320"]
[BlackFideId "25017969"]
[WhiteElo "2420"]
[BlackElo "2142"]
[Result "0-1"]
[Round "04"]
[TimeControl "180+1"]
[Date "2022.06.07"]
[WhiteClock "0:00:03"]
[BlackClock "0:00:31"]

1. Nf3 {[%clk 0:03:00]}  Nf6 {[%clk 0:02:59]} 2. e3 {[%clk 0:03:00]}  b6 {[%clk 0:02:58]} 3. d4 {[%clk 0:02:59]}  Bb7 {[%clk 0:02:58]} 4. Bd3 {[%clk 0:03:00]}  g6 {[%clk 0:02:59]} 5. O-O {[%clk 0:03:00]}  Bg7 {[%clk 0:02:59]} 6. c4 {[%clk 0:02:58]}  O-O {[%clk 0:02:59]} 7. Nc3 {[%clk 0:02:57]}  d6 {[%clk 0:02:54]} 8. e4 {[%clk 0:02:56]}  Nbd7 {[%clk 0:02:54]} 9. Re1 {[%clk 0:02:49]}  e5 {[%clk 0:02:54]} 10. d5 {[%clk 0:02:49]}  Nc5 {[%clk 0:02:54]} 11. Bc2 {[%clk 0:02:50]}  a5 {[%clk 0:02:54]} 12. b3 {[%clk 0:02:47]}  Nh5 {[%clk 0:02:46]} 13. Rb1 {[%clk 0:02:46]}  Bf6 {[%clk 0:02:46]} 14. Bh6 {[%clk 0:02:39]}  Ng7 {[%clk 0:02:46]} 15. a3 {[%clk 0:02:36]}  Be7 {[%clk 0:02:40]} 16. b4 {[%clk 0:02:27]}  Nd7 {[%clk 0:02:34]} 17. Qd2 {[%clk 0:02:18]}  Nf6 {[%clk 0:02:33]} 18. h3 {[%clk 0:02:13]}  Bc8 {[%clk 0:02:21]} 19. Ba4 {[%clk 0:02:04]}  axb4 {[%clk 0:02:15]} 20. axb4 {[%clk 0:02:04]}  Kh8 {[%clk 0:01:56]} 21. Bc6 {[%clk 0:02:03]}  Rb8 {[%clk 0:01:46]} 22. Ra1 {[%clk 0:02:03]}  Ng8 {[%clk 0:01:46]} 23. Bxg7+ {[%clk 0:01:57]}  Kxg7 {[%clk 0:01:45]} 24. Ra7 {[%clk 0:01:58]}  f5 {[%clk 0:01:40]} 25. Nb5 {[%clk 0:01:22]}  fxe4 {[%clk 0:01:38]} 26. Rxe4 {[%clk 0:01:22]}  Bf5 {[%clk 0:01:35]} 27. Re3 {[%clk 0:01:17]}  Rc8 {[%clk 0:01:33]} 28. Rea3 {[%clk 0:01:12]}  Nf6 {[%clk 0:01:28]} 29. Ng5 {[%clk 0:01:09]}  Ne4 {[%clk 0:01:26]} 30. Nxe4 {[%clk 0:01:07]}  Bxe4 {[%clk 0:01:26]} 31. Qe2 {[%clk 0:00:59]}  Bh4 {[%clk 0:01:23]} 32. Qxe4 {[%clk 0:00:54]}  Bxf2+ {[%clk 0:01:18]} 33. Kh2 {[%clk 0:00:54]}  Rf4 {[%clk 0:01:15]} 34. Qe2 {[%clk 0:00:49]}  e4 {[%clk 0:01:08]} 35. Nc3 {[%clk 0:00:25]}  e3 {[%clk 0:01:05]} 36. Nd1 {[%clk 0:00:22]}  Qg5 {[%clk 0:01:04]} 37. Rxe3 {[%clk 0:00:21]}  Bxe3 {[%clk 0:01:03]} 38. Qxe3 {[%clk 0:00:20]}  Qf6 {[%clk 0:00:59]} 39. Qc3 {[%clk 0:00:15]}  Rd4 {[%clk 0:00:57]} 40. Ra1 {[%clk 0:00:07]}  Kh6 {[%clk 0:00:52]} 41. Qe3+ {[%clk 0:00:06]}  g5 {[%clk 0:00:51]} 42. Rc1 {[%clk 0:00:06]}  Rf8 {[%clk 0:00:48]} 43. Qg3 {[%clk 0:00:05]}  Qf1 {[%clk 0:00:40]} 44. Qb3 {[%clk 0:00:03]}  Rd2 {[%clk 0:00:35]} 45. Ne3 {[%clk 0:00:03]}  Qxc1 {[%clk 0:00:34]} 46. Ng4+ {[%clk 0:00:03]}  Kg7 {[%clk 0:00:33]} 47. Qe3 {[%clk 0:00:03]}  Rd1 {[%clk 0:00:29]} 48. Qe7+ {[%clk 0:00:02]}  Rf7 {[%clk 0:00:30]} 49. Qe4 {[%clk 0:00:02]}  Rh1+ {[%clk 0:00:30]} 50. Kg3 {[%clk 0:00:02]}  Qe1+ {[%clk 0:00:30]} 51. Qxe1 {[%clk 0:00:03]}  Rxe1 {[%clk 0:00:31]} 52. c5 {[%clk 0:00:02]}  bxc5 {[%clk 0:00:30]} 53. bxc5 {[%clk 0:00:03]}  dxc5 {[%clk 0:00:31]} 0-1


[Site "https://www.chess.com"]

[Event "Titled Tuesday Blitz June 07 Early 2022"]
[White "Kosteniuk, Alexandra"]
[Black "Drygalov, Andrey"]
[WhiteFideId "4128125"]
[BlackFideId "24171735"]
[WhiteElo "2469"]
[BlackElo "2540"]
[Result "1/2-1/2"]
[Round "04"]
[TimeControl "180+1"]
[Date "2022.06.07"]
[WhiteClock "0:00:04"]
[BlackClock "0:00:05"]

1. Nf3 {[%clk 0:03:00]}  Nf6 {[%clk 0:02:57]} 2. g3 {[%clk 0:03:01]}  g6 {[%clk 0:02:56]} 3. Bg2 {[%clk 0:03:01]}  Bg7 {[%clk 0:02:57]} 4. O-O {[%clk 0:03:02]}  O-O {[%clk 0:02:58]} 5. c4 {[%clk 0:03:02]}  c6 {[%clk 0:02:58]} 6. d4 {[%clk 0:03:02]}  d5 {[%clk 0:02:58]} 7. Qb3 {[%clk 0:03:02]}  dxc4 {[%clk 0:02:57]} 8. Qxc4 {[%clk 0:03:02]}  Bf5 {[%clk 0:02:58]} 9. Ne5 {[%clk 0:03:00]}  Nbd7 {[%clk 0:02:57]} 10. Bf4 {[%clk 0:02:57]}  Nb6 {[%clk 0:02:56]} 11. Qb3 {[%clk 0:02:49]}  Qxd4 {[%clk 0:02:53]} 12. Nc3 {[%clk 0:02:45]}  Nh5 {[%clk 0:02:44]} 13. Rfd1 {[%clk 0:02:24]}  Qc5 {[%clk 0:02:43]} 14. Nd3 {[%clk 0:02:12]}  Qc4 {[%clk 0:02:41]} 15. Qa3 {[%clk 0:01:55]}  Nxf4 {[%clk 0:02:34]} 16. Nxf4 {[%clk 0:01:53]}  e5 {[%clk 0:02:22]} 17. Nd3 {[%clk 0:01:49]}  e4 {[%clk 0:02:14]} 18. Nc5 {[%clk 0:01:48]}  e3 {[%clk 0:02:04]} 19. fxe3 {[%clk 0:01:38]}  Rfe8 {[%clk 0:02:00]} 20. Nxb7 {[%clk 0:01:34]}  Qe6 {[%clk 0:01:53]} 21. e4 {[%clk 0:01:27]}  Bg4 {[%clk 0:01:40]} 22. Nc5 {[%clk 0:01:11]}  Qe7 {[%clk 0:01:38]} 23. Qb4 {[%clk 0:00:46]}  Rab8 {[%clk 0:01:26]} 24. Na6 {[%clk 0:00:46]}  Qxb4 {[%clk 0:01:24]} 25. Nxb4 {[%clk 0:00:47]}  Rbc8 {[%clk 0:01:13]} 26. Bf3 {[%clk 0:00:38]}  Be6 {[%clk 0:01:10]} 27. e5 {[%clk 0:00:36]}  Nc4 {[%clk 0:01:05]} 28. Nxc6 {[%clk 0:00:35]}  Nxe5 {[%clk 0:00:57]} 29. Nxe5 {[%clk 0:00:33]}  Bxe5 {[%clk 0:00:58]} 30. Rac1 {[%clk 0:00:33]}  Red8 {[%clk 0:00:57]} 31. Nb5 {[%clk 0:00:26]}  Rxc1 {[%clk 0:00:55]} 32. Rxc1 {[%clk 0:00:26]}  Bxb2 {[%clk 0:00:55]} 33. Rc7 {[%clk 0:00:24]}  a6 {[%clk 0:00:55]} 34. Na7 {[%clk 0:00:24]}  Be5 {[%clk 0:00:53]} 35. Rb7 {[%clk 0:00:22]}  Rd1+ {[%clk 0:00:33]} 36. Kg2 {[%clk 0:00:21]}  Bd4 {[%clk 0:00:33]} 37. h4 {[%clk 0:00:16]}  Bxa2 {[%clk 0:00:21]} 38. Nc6 {[%clk 0:00:16]}  Bf6 {[%clk 0:00:21]} 39. Ra7 {[%clk 0:00:15]}  Bc4 {[%clk 0:00:21]} 40. Nb4 {[%clk 0:00:14]}  Rd2 {[%clk 0:00:16]} 41. Kf1 {[%clk 0:00:14]}  Bd4 {[%clk 0:00:13]} 42. Ra8+ {[%clk 0:00:14]}  Kg7 {[%clk 0:00:13]} 43. Nxa6 {[%clk 0:00:14]}  Rd1+ {[%clk 0:00:09]} 44. Kg2 {[%clk 0:00:14]}  Re1 {[%clk 0:00:10]} 45. Nc7 {[%clk 0:00:11]}  Bxe2 {[%clk 0:00:09]} 46. Bxe2 {[%clk 0:00:09]}  Rxe2+ {[%clk 0:00:10]} 47. Kf3 {[%clk 0:00:09]}  Re3+ {[%clk 0:00:11]} 48. Kf4 {[%clk 0:00:09]}  Re1 {[%clk 0:00:07]} 49. Ne8+ {[%clk 0:00:08]}  Kh6 {[%clk 0:00:06]} 50. g4 {[%clk 0:00:08]}  Be5+ {[%clk 0:00:07]} 51. Kf3 {[%clk 0:00:09]}  f6 {[%clk 0:00:07]} 52. Ra7 {[%clk 0:00:06]}  Rh1 {[%clk 0:00:06]} 53. h5 {[%clk 0:00:03]}  gxh5 {[%clk 0:00:06]} 54. gxh5 {[%clk 0:00:04]}  Rxh5 {[%clk 0:00:06]} 55. Ng7 {[%clk 0:00:04]}  Rg5 {[%clk 0:00:06]} 56. Ne6 {[%clk 0:00:04]}  Rg3+ {[%clk 0:00:06]} 57. Ke4 {[%clk 0:00:05]}  Kg6 {[%clk 0:00:07]} 58. Nf8+ {[%clk 0:00:05]}  Kg5 {[%clk 0:00:07]} 59. Nxh7+ {[%clk 0:00:05]}  Kh4 {[%clk 0:00:07]} 60. Nxf6 {[%clk 0:00:05]}  Bxf6 {[%clk 0:00:08]} 61. Kf5 {[%clk 0:00:05]}  Rf3+ {[%clk 0:00:07]} 62. Kg6 {[%clk 0:00:04]}  Be5 {[%clk 0:00:05]} 63. Ra4+ {[%clk 0:00:05]}  Kg3 {[%clk 0:00:05]} 64. Ra5 {[%clk 0:00:05]}  Bf4 {[%clk 0:00:06]} 65. Ra4 {[%clk 0:00:05]}  Be3 {[%clk 0:00:06]} 66. Ra5 {[%clk 0:00:04]}  Kf2 {[%clk 0:00:06]} 67. Rf5 {[%clk 0:00:05]}  Bf4 {[%clk 0:00:07]} 68. Kf6 {[%clk 0:00:05]}  Ke3 {[%clk 0:00:07]} 69. Ke6 {[%clk 0:00:06]}  Rh3 {[%clk 0:00:08]} 70. Rd5 {[%clk 0:00:06]}  Rh8 {[%clk 0:00:08]} 71. Kf5 {[%clk 0:00:06]}  Rh5+ {[%clk 0:00:08]} 72. Ke6 {[%clk 0:00:07]}  Rh6+ {[%clk 0:00:09]} 73. Kf5 {[%clk 0:00:07]}  Rh8 {[%clk 0:00:09]} 74. Rd7 {[%clk 0:00:07]}  Rf8+ {[%clk 0:00:09]} 75. Ke6 {[%clk 0:00:07]}  Ke4 {[%clk 0:00:09]} 76. Rf7 {[%clk 0:00:07]}  Ra8 {[%clk 0:00:09]} 77. Re7 {[%clk 0:00:08]}  Ra6+ {[%clk 0:00:09]} 78. Kf7+ {[%clk 0:00:08]}  Kf5 {[%clk 0:00:10]} 79. Rd7 {[%clk 0:00:08]}  Be5 {[%clk 0:00:10]} 80. Ke7 {[%clk 0:00:09]}  Rh6 {[%clk 0:00:09]} 81. Kf7 {[%clk 0:00:09]}  Bd6 {[%clk 0:00:10]} 82. Ke8 {[%clk 0:00:06]}  Ke5 {[%clk 0:00:09]} 83. Kf7 {[%clk 0:00:06]}  Rh1 {[%clk 0:00:06]} 84. Ke8 {[%clk 0:00:06]}  Ke6 {[%clk 0:00:06]} 85. Re7+ {[%clk 0:00:06]}  Kf6 {[%clk 0:00:06]} 86. Rf7+ {[%clk 0:00:06]}  Ke6 {[%clk 0:00:07]} 87. Re7+ {[%clk 0:00:06]}  Kd5 {[%clk 0:00:07]} 88. Rd7 {[%clk 0:00:06]}  Rf1 {[%clk 0:00:07]} 89. Rf7 {[%clk 0:00:04]}  Ra1 {[%clk 0:00:08]} 90. Kd7 {[%clk 0:00:05]}  Ke5 {[%clk 0:00:07]} 91. Ke8 {[%clk 0:00:03]}  Ke6 {[%clk 0:00:05]} 92. Re7+ {[%clk 0:00:03]}  Kd5 {[%clk 0:00:06]} 93. Rf7 {[%clk 0:00:04]}  Rc1 {[%clk 0:00:06]} 94. Rd7 {[%clk 0:00:03]}  Rc8+ {[%clk 0:00:05]} 95. Kf7 {[%clk 0:00:03]}  Kc6 {[%clk 0:00:05]} 96. Ra7 {[%clk 0:00:02]}  Bc5 {[%clk 0:00:06]} 97. Ra6+ {[%clk 0:00:02]}  Kd5 {[%clk 0:00:06]} 98. Rg6 {[%clk 0:00:02]}  Rf8+ {[%clk 0:00:07]} 99. Kg7 {[%clk 0:00:02]}  Rf1 {[%clk 0:00:07]} 100. Rg5+ {[%clk 0:00:02]}  Ke6 {[%clk 0:00:07]} 101. Rg6+ {[%clk 0:00:02]}  Ke7 {[%clk 0:00:08]} 102. Rg4 {[%clk 0:00:03]}  Bd6 {[%clk 0:00:08]} 103. Kg6 {[%clk 0:00:03]}  Be5 {[%clk 0:00:08]} 104. Re4 {[%clk 0:00:03]}  Ke6 {[%clk 0:00:08]} 105. Rg4 {[%clk 0:00:03]}  Rf8 {[%clk 0:00:09]} 106. Kg5 {[%clk 0:00:04]}  Rh8 {[%clk 0:00:09]} 107. Kg6 {[%clk 0:00:04]}  Rf8 {[%clk 0:00:07]} 108. Kg5 {[%clk 0:00:04]}  Rf6 {[%clk 0:00:06]} 109. Kh5 {[%clk 0:00:04]}  Rf1 {[%clk 0:00:04]} 110. Rg6+ {[%clk 0:00:04]}  Bf6 {[%clk 0:00:05]} 1/2-1/2


[Site "https://www.chess.com"]